fUSD/lending_fUSD_20250109
["ID","MTS","AMOUNT","RATE_DAILY","PERIOD"]
[348204207,1736387438098,-500.0,9.997e-05,2]
[348204209,1736387438107,-526.34382136,9.997e-05,2]
[348204211,1736387438117,-500.0,9.997e-05,2]
[348204213,1736387438127,-500.0,9.997e-05,2]
[348204215,1736387438136,-500.0,9.997e-05,2]
[348204217,1736387438145,-500.0,9.997e-05,2]
[348204219,1736387438155,-500.0,9.997e-05,2]
[348204221,1736387438165,-500.0,9.997e-05,2]
[348204223,1736387438175,-615.6832484,9.997e-05,2]
[348204225,1736387438184,-543.36201233,9.997e-05,2]
[348204227,1736387438194,-506.05994264,9.997e-05,2]
[348204229,1736387438203,-604.27489655,9.997e-05,2]
[348204231,1736387438213,-508.40949347,9.997e-05,2]
[348204233,1736387438223,-308.10149026,9.997e-05,2]
[348204235,1736387438233,-389.43578497,9.997e-05,2]
[348204237,1736387438243,-507.39464134,9.997e-05,2]
[348204239,1736387438253,-500.0,9.997e-05,2]
[348204241,1736387438263,-1291.05,9.997e-05,2]
[348204244,1736387438272,-523.972988,9.997e-05,2]
[348204245,1736387438282,-503.03805005,9.997e-05,2]
[348204248,1736387438291,-506.97251445,9.997e-05,2]
[348204250,1736387438301,-500.0,9.997e-05,2]
[348204252,1736387438310,-504.3005353,9.997e-05,2]
[348204253,1736387438319,-500.0,9.997e-05,2]
[348204255,1736387438329,-501.55057505,9.997e-05,2]
[348204258,1736387438338,-472.674482,9.997e-05,2]
[348204260,1736387438348,-500.0,9.997e-05,2]
[348204262,1736387438358,-504.12417592,9.997e-05,2]
[348204264,1736387438367,-508.05654861,9.997e-05,2]
[348204265,1736387438376,-157.404061,9.997e-05,2]
[348204267,1736387438385,-507.56550745,9.997e-05,2]
[348204269,1736387438394,-500.0,9.997e-05,2]
[348204271,1736387438403,-502.65969672,9.997e-05,2]
[348204273,1736387438413,-502.89857352,9.997e-05,2]
[348204275,1736387438422,-467.88063816,9.997e-05,2]
[348204277,1736387438432,-639.05772306,9.997e-05,2]
[348204279,1736387438441,-504.48110677,9.997e-05,2]
[348204281,1736387438451,-500.0,9.997e-05,2]
[348204283,1736387438461,-168.83556566,9.997e-05,2]
[348204285,1736387438470,-500.0,9.997e-05,2]
[348204287,1736387438480,-502.94975814,9.997e-05,2]
[348204289,1736387438489,-508.52471692,9.997e-05,2]
[348204291,1736387438499,-506.18643359,9.997e-05,2]
[348204293,1736387438508,-512.54326621,9.997e-05,2]
[348204295,1736387438518,-500.0,9.997e-05,2]
[348204297,1736387438528,-506.0018292,9.997e-05,2]
[348204299,1736387438537,-422.65916668,9.997e-05,2]
[348204301,1736387438547,-507.06933765,9.997e-05,2]
[348204303,1736387438557,-191.69328418,9.997e-05,2]
[348204306,1736387438568,-500.0,9.997e-05,2]
[348204308,1736387438577,-613.57045699,9.997e-05,2]
[348204310,1736387438586,-503.6079046,9.997e-05,2]
[348204312,1736387438596,-500.0,9.997e-05,2]
[348204314,1736387438605,-500.0,9.997e-05,2]
[348204315,1736387438614,-502.48471947,9.997e-05,2]
[348204317,1736387438623,-500.0,9.997e-05,2]
[348204319,1736387438632,-500.0,9.997e-05,2]
[348204321,1736387438642,-1731.64,9.997e-05,2]
[348204324,1736387438652,-501.01949311,9.997e-05,2]
[348204325,1736387438663,-500.0,9.997e-05,2]
[348204328,1736387438673,-507.12652153,9.997e-05,2]
[348204330,1736387438682,-506.26062872,9.997e-05,2]
[348204332,1736387438691,-602.85737945,9.997e-05,2]
[348204333,1736387438701,-502.38613988,9.997e-05,2]
[348204336,1736387438710,-503.44402595,9.997e-05,2]
[348204337,1736387438720,-549.59363587,9.997e-05,2]
[348204340,1736387438730,-503.16327323,9.997e-05,2]
[348204341,1736387438739,-500.0,9.997e-05,2]
[348204343,1736387438748,-500.0,9.997e-05,2]
[348204345,1736387438758,-519.77901482,9.997e-05,2]
[348204348,1736387438767,-500.0,9.997e-05,2]
[348204350,1736387438778,-505.91384678,9.997e-05,2]
[348204351,1736387438789,-500.0,9.997e-05,2]
[348204353,1736387438797,-507.70108311,9.997e-05,2]
[348204355,1736387438806,-500.0,9.997e-05,2]
[348204357,1736387438815,-672.55,9.997e-05,2]
[348204360,1736387438826,-500.0,9.997e-05,2]
[348204362,1736387438835,-500.0,9.997e-05,2]
[348204364,1736387438844,-507.12431399,9.997e-05,2]
[348204366,1736387438854,-500.0,9.997e-05,2]
[348204368,1736387438863,-500.0,9.997e-05,2]
[348204369,1736387438872,-595.29,9.997e-05,2]
[348204372,1736387438882,-500.0,9.997e-05,2]
[348204374,1736387438891,-502.65359087,9.997e-05,7]
[348204376,1736387438900,-505.72649403,9.997e-05,2]
[348204377,1736387438910,-500.0,9.997e-05,2]
[348204379,1736387438920,-500.0,9.997e-05,2]
[348204382,1736387438930,-500.0,9.997e-05,2]
[348204384,1736387438940,-500.0,9.997e-05,2]
[348204385,1736387438950,-532.23,9.997e-05,2]
[348204387,1736387438959,-507.15540759,9.997e-05,2]
[348204389,1736387438968,-500.0,9.997e-05,2]
[348204391,1736387438978,-500.0,9.997e-05,2]
[348204393,1736387438987,-500.0,9.997e-05,2]
[348204395,1736387438997,-515.52413547,9.997e-05,2]
[348204397,1736387439008,-500.0,9.997e-05,2]
[348204399,1736387439018,-506.41782005,9.997e-05,2]
[348204401,1736387439027,-511.34683042,9.997e-05,2]
[348204403,1736387439037,-506.53077174,9.997e-05,2]
[348204406,1736387439047,-500.0,9.997e-05,2]
[348204408,1736387439057,-500.0,9.997e-05,2]
[348204409,1736387439067,-500.0,9.997e-05,2]
[348204412,1736387439077,-500.0,9.997e-05,2]
[348204414,1736387439087,-279.30570183,9.997e-05,2]
[348204416,1736387439096,-503.57075237,9.997e-05,2]
[348204418,1736387439106,-500.0,9.997e-05,2]
[348204420,1736387439116,-505.57638103,9.997e-05,2]
[348204422,1736387439125,-500.0,9.997e-05,2]
[348204424,1736387439134,-505.15114155,9.997e-05,2]
[348204425,1736387439144,-505.18478855,9.997e-05,2]
[348204428,1736387439154,-500.0,9.997e-05,2]
[348204429,1736387439166,-506.64911061,9.997e-05,2]
[348204431,1736387439175,-503.33122706,9.997e-05,2]
[348204433,1736387439185,-500.0,9.997e-05,2]
[348204435,1736387439195,-500.0,9.997e-05,2]
[348204438,1736387439204,-507.90490884,9.997e-05,2]
[348204440,1736387439214,-500.0,9.997e-05,2]
[348204442,1736387439223,-500.0,9.997e-05,2]
[348204443,1736387439233,-500.0,9.997e-05,2]
[348204445,1736387439243,-500.0,9.997e-05,2]
[348204448,1736387439253,-352.74954582,9.997e-05,2]
[348204450,1736387439263,-500.0,9.997e-05,2]
[348204452,1736387439272,-510.96573729,9.997e-05,2]
[348204454,1736387439281,-500.0,9.997e-05,2]
[348204456,1736387439291,-500.0,9.997e-05,2]
[348204458,1736387439300,-500.0,9.997e-05,2]
[348204460,1736387439309,-500.0,9.997e-05,2]
[348204462,1736387439318,-500.0,9.997e-05,2]
[348204464,1736387439327,-500.0,9.997e-05,2]
[348204466,1736387439337,-500.0,9.997e-05,2]
[348204468,1736387439347,-839.82,9.997e-05,2]
[348204470,1736387439356,-508.16734748,9.997e-05,2]
[348204472,1736387439365,-500.0,9.997e-05,2]
[348204473,1736387439375,-500.0,9.997e-05,2]
[348204475,1736387439384,-500.0,9.997e-05,2]
[348204477,1736387439393,-500.0,9.997e-05,2]
[348204479,1736387439403,-500.0,9.997e-05,2]
[348204481,1736387439414,-506.60214848,9.997e-05,2]
[348204483,1736387439423,-512.84176081,9.997e-05,2]
[348204485,1736387439433,-1056.27,9.997e-05,2]
[348204487,1736387439442,-500.0,9.997e-05,2]
[348204489,1736387439453,-507.51837772,9.997e-05,2]
[348204491,1736387439463,-500.0,9.997e-05,2]
[348204493,1736387439473,-500.0,9.997e-05,2]
[348204495,1736387439484,-500.0,9.997e-05,2]
[348204497,1736387439494,-500.0,9.997e-05,2]
[348204499,1736387439504,-500.0,9.997e-05,2]
[348204501,1736387439513,-500.0,9.997e-05,2]
[348204503,1736387439523,-918.79,9.997e-05,2]
[348204505,1736387439532,-500.0,9.997e-05,2]
[348204507,1736387439541,-500.0,9.997e-05,2]
[348204509,1736387439550,-510.35479378,9.997e-05,2]
[348204511,1736387439560,-500.0,9.997e-05,2]
[348204513,1736387439569,-502.81916589,9.997e-05,2]
[348204515,1736387439579,-500.0,9.997e-05,2]
[348204517,1736387439589,-505.00396231,9.997e-05,2]
[348204519,1736387439598,-632.12,9.997e-05,2]
[348204521,1736387439607,-500.0,9.997e-05,2]
[348204523,1736387439616,-500.0,9.997e-05,2]
[348204526,1736387439626,-500.0,9.997e-05,2]
[348204528,1736387439636,-500.0,9.997e-05,2]
[348204530,1736387439646,-500.0,9.997e-05,2]
[348204532,1736387439655,-500.0,9.997e-05,2]
[348204534,1736387439666,-500.0,9.997e-05,2]
[348204536,1736387439676,-500.0,9.997e-05,2]
[348204538,1736387439686,-503.76280648,9.997e-05,2]
[348204540,1736387439695,-500.0,9.997e-05,2]
[348204542,1736387439705,-635.92,9.997e-05,2]
[348204544,1736387439714,-500.0,9.997e-05,2]
[348204546,1736387439724,-500.0,9.997e-05,2]
[348204548,1736387439734,-500.0,9.997e-05,2]
[348204550,1736387439743,-500.0,9.997e-05,2]
[348204552,1736387439752,-500.0,9.997e-05,2]
[348204554,1736387439762,-500.0,9.997e-05,2]
[348204556,1736387439771,-506.33220225,9.997e-05,2]
[348204558,1736387439783,-506.36300228,9.997e-05,2]
[348204560,1736387439792,-500.0,9.997e-05,2]
[348204562,1736387439801,-500.0,9.997e-05,2]
[348204564,1736387439810,-500.0,9.997e-05,2]
[348204566,1736387439819,-500.0,9.997e-05,2]
[348204568,1736387439829,-500.0,9.997e-05,2]
[348204570,1736387439839,-500.0,9.997e-05,2]
[348204572,1736387439849,-248.32767788,9.997e-05,2]
[348204574,1736387439858,-1465.76,9.997e-05,2]
[348204576,1736387439869,-502.42731785,9.997e-05,2]
[348204578,1736387439880,-508.2997432,9.997e-05,2]
[348204579,1736387439889,-500.0,9.997e-05,2]
[348204580,1736387439898,-401.69003863,9.997e-05,2]
[348204581,1736387439907,-500.0,9.997e-05,2]
[348204582,1736387439919,-1117.11,9.997e-05,2]
[348204583,1736387439928,-500.0,9.997e-05,2]
[348204584,1736387439938,-504.09009057,9.997e-05,2]
[348204585,1736387439948,-500.0,9.997e-05,2]
[348204587,1736387439958,-2047.35,9.997e-05,2]
[348204589,1736387439968,-510.01309691,9.997e-05,2]
[348204591,1736387439977,-2532.35,9.997e-05,2]
[348204593,1736387439987,-504.15426786,9.997e-05,2]
[348204595,1736387439996,-500.0,9.997e-05,2]
[348204596,1736387440005,-952.86,9.997e-05,2]
[348204597,1736387440014,-500.0,9.997e-05,2]
[348204598,1736387440024,-500.0,9.997e-05,2]
[348204599,1736387440034,-500.0,9.997e-05,2]
[348204600,1736387440043,-1550.58,9.997e-05,2]
[348204601,1736387440052,-500.0,9.997e-05,2]
[348204602,1736387440062,-1518.88,9.997e-05,2]
[348204603,1736387440072,-1120.25,9.997e-05,2]
[348204604,1736387440083,-500.0,9.997e-05,2]
[348204605,1736387440092,-806.52,9.997e-05,2]
[348204606,1736387440102,-507.6,9.997e-05,2]
[348204607,1736387440112,-714.74,9.997e-05,2]
[348204608,1736387440122,-1740.83,9.997e-05,2]
[348204610,1736387440131,-563.92,9.997e-05,2]
[348204612,1736387440141,-500.0,9.997e-05,2]
[348204613,1736387440150,-1684.5,9.997e-05,2]
[348204614,1736387440159,-314.77432352,9.997e-05,2]
[348204615,1736387440168,-519.48,9.997e-05,2]
[348204616,1736387440177,-500.0,9.997e-05,2]
[348204617,1736387440187,-684.38,9.997e-05,2]
[348204618,1736387440197,-500.0,9.997e-05,2]
[348204620,1736387440207,-500.0,9.997e-05,2]
[348204621,1736387440217,-500.0,9.997e-05,2]
[348204622,1736387440226,-1010.53,9.997e-05,2]
[348204623,1736387440236,-766.29,9.997e-05,2]
[348204624,1736387440246,-500.0,9.997e-05,2]
[348204625,1736387440256,-733.84,9.997e-05,2]
[348204626,1736387440265,-500.0,9.997e-05,2]
[348204627,1736387440275,-500.0,9.997e-05,2]
[348204628,1736387440284,-852.38,9.997e-05,2]
[348204629,1736387440293,-919.08,9.998e-05,2]
[348204630,1736387440306,-808.61,9.998e-05,2]
[348204631,1736387440315,-7640.377851,9.998e-05,2]
[348204632,1736387440324,-5001.1427818,9.998e-05,2]
[348204633,1736387440334,-1819.53,9.998e-05,2]
[348204634,1736387440343,-869.28,9.998e-05,2]
[348204635,1736387440353,-495.62338997,9.998e-05,2]
[348204636,1736387440362,-1333.98,9.998e-05,2]
[348204637,1736387440372,-477.49586238,9.998e-05,2]
[348204639,1736387440381,-500.0,9.998e-05,2]
[348204640,1736387440390,-765.7222373,9.998e-05,2]
[348204641,1736387440400,-378.46401928,9.998e-05,2]
[348204642,1736387440410,-500.0,9.998e-05,2]
[348204643,1736387440420,-520.59763906,9.998e-05,2]
[348204644,1736387440429,-509.9607266,9.998e-05,2]
[348204645,1736387440439,-500.0,9.998e-05,2]
[348204646,1736387440448,-505.31660785,9.998e-05,2]
[348204647,1736387440457,-512.04341831,9.998e-05,2]
[348204648,1736387440467,-599.18,9.998e-05,2]
[348204649,1736387440476,-507.27541652,9.998e-05,2]
[348204650,1736387440486,-236.82556523,9.998e-05,2]
[348204651,1736387440496,-611.74704,9.998e-05,2]
[348204652,1736387440505,-587.13,9.998e-05,2]
[348204653,1736387440515,-502.3947008,9.998e-05,2]
[348204654,1736387440525,-505.5796976,9.998e-05,2]
[348204655,1736387440535,-508.03238744,9.998e-05,2]
[348204656,1736387440544,-2853.32,9.998e-05,2]
[348204657,1736387440554,-511.11968708,9.998e-05,2]
[348204658,1736387440563,-500.0,9.998e-05,2]
[348204659,1736387440572,-500.0,9.998e-05,2]
[348204660,1736387440582,-893.02,9.998e-05,2]
[348204661,1736387440591,-575.66593504,9.998e-05,2]
[348204662,1736387440601,-2939.3923094,9.998e-05,2]
[348204663,1736387440610,-508.37562625,9.998e-05,2]
[348204664,1736387440619,-518.15,9.998e-05,2]
[348204665,1736387440628,-403.07065083,9.998e-05,2]
[348204666,1736387440638,-1861.5,9.998e-05,2]
[348204667,1736387440647,-1087.61,9.998e-05,2]
[348204668,1736387440657,-1249.66,9.998e-05,2]
[348204669,1736387440668,-500.0,9.998e-05,2]
[348204670,1736387440678,-500.0,9.998e-05,2]
[348204671,1736387440688,-500.0,9.998e-05,2]
[348204672,1736387440697,-1973.17,9.998e-05,2]
[348204673,1736387440707,-551.6,9.998e-05,2]
[348204674,1736387440716,-508.17870619,9.998e-05,2]
[348204675,1736387440726,-500.0,9.998e-05,2]
[348204676,1736387440736,-282.11753579,9.998e-05,2]
[348204677,1736387440746,-500.0,9.998e-05,2]
[348204678,1736387440755,-502.91287248,9.998e-05,2]
[348204679,1736387440765,-1104.15,9.998e-05,2]
[348204680,1736387440774,-674.17,9.998e-05,2]
[348204681,1736387440787,-661.09,9.998e-05,2]
[348204682,1736387440796,-500.0,9.998e-05,2]
[348204683,1736387440805,-502.85963921,9.998e-05,2]
[348204684,1736387440815,-508.61063711,9.998e-05,2]
[348204685,1736387440826,-504.05773245,9.998e-05,2]
[348204686,1736387440835,-509.38448452,9.998e-05,2]
[348204687,1736387440845,-504.40436539,9.998e-05,2]
[348204688,1736387440856,-500.0,9.998e-05,2]
[348204689,1736387440866,-504.58840305,9.998e-05,2]
[348204690,1736387440876,-500.0,9.998e-05,2]
[348204691,1736387440886,-544.19627356,9.998e-05,2]
[348204692,1736387440895,-500.0,9.998e-05,2]
[348204693,1736387440905,-505.43390287,9.998e-05,2]
[348204694,1736387440915,-512.5,9.998e-05,2]
[348204695,1736387440924,-173.55837637,9.998e-05,2]
[348204696,1736387440934,-500.0,9.998e-05,2]
[348204697,1736387440943,-500.0,9.999e-05,2]
[348204698,1736387440954,-264.6304794,9.999e-05,2]
[348204699,1736387440963,-500.0,9.999e-05,2]
[348204700,1736387440973,-500.0,9.999e-05,2]
[348204701,1736387440983,-500.0,9.999e-05,2]
[348204702,1736387440992,-500.0,9.999e-05,2]
[348204703,1736387441001,-500.0,9.999e-05,2]
[348204704,1736387441011,-500.0,9.999e-05,2]
[348204705,1736387441020,-500.0,9.999e-05,2]
[348204706,1736387441030,-500.0,9.999e-05,2]
[348204707,1736387441039,-500.0,9.999e-05,2]
[348204708,1736387441048,-500.0,9.999e-05,2]
[348204709,1736387441058,-500.0,9.999e-05,2]
[348204710,1736387441067,-500.0,9.999e-05,2]
[348204711,1736387441077,-534.33,9.999e-05,2]
[348204712,1736387441086,-500.0,9.999e-05,2]
[348204713,1736387441096,-500.0,9.999e-05,2]
[348204714,1736387441106,-500.0,9.999e-05,2]
[348204715,1736387441115,-472.15642404,9.999e-05,2]
[348204716,1736387441125,-505.72890368,9.999e-05,2]
[348204717,1736387441134,-500.0,9.999e-05,2]
[348204718,1736387441144,-509.04947957,9.999e-05,2]
[348204719,1736387441153,-500.0,9.999e-05,2]
[348204720,1736387441165,-500.0,9.999e-05,2]
[348204721,1736387441174,-505.91330149,9.999e-05,2]
[348204722,1736387441184,-500.0,9.999e-05,2]
[348204723,1736387441194,-537.62,9.999e-05,2]
[348204724,1736387441203,-500.0,9.999e-05,2]
[348204725,1736387441213,-517.3766194,9.999e-05,2]
[348204726,1736387441222,-500.0,9.999e-05,2]
[348204727,1736387441232,-500.0,9.999e-05,2]
[348204728,1736387441242,-500.0,9.999e-05,2]
[348204729,1736387441251,-714.39,9.999e-05,2]
[348204730,1736387441260,-500.0,9.999e-05,2]
[348204731,1736387441270,-684.62,9.999e-05,2]
[348204732,1736387441280,-500.0,9.999e-05,2]
[348204733,1736387441289,-523.39,9.999e-05,2]
[348204734,1736387441299,-500.0,9.999e-05,2]
[348204735,1736387441308,-500.0,9.999e-05,2]
[348204736,1736387441318,-500.0,9.999e-05,2]
[348204737,1736387441327,-500.0,9.999e-05,2]
[348204738,1736387441337,-509.04869692,9.999e-05,2]
[348204739,1736387441347,-500.0,9.999e-05,2]
[348204740,1736387441356,-507.29793663,9.999e-05,2]
[348204741,1736387441366,-500.0,9.999e-05,2]
[348204742,1736387441377,-500.0,9.999e-05,2]
[348204743,1736387441568,-296.12644785,9.999e-05,2]
[348204744,1736387441578,-500.0,9.999e-05,2]
[348204745,1736387441588,-500.0,9.999e-05,2]
[348204746,1736387441598,-500.0,9.999e-05,2]
[348204747,1736387441608,-506.97974662,9.999e-05,2]
[348204748,1736387441617,-500.0,9.999e-05,2]
[348204749,1736387441627,-500.0,9.999e-05,2]
[348204750,1736387441637,-500.0,9.999e-05,2]
[348204751,1736387441646,-1000.0,9.999e-05,2]
[348204752,1736387441656,-506.32932617,9.999e-05,2]
[348204753,1736387441668,-500.0,9.999e-05,2]
[348204754,1736387441677,-500.0,9.999e-05,2]
[348204755,1736387441687,-500.0,9.999e-05,2]
[348204756,1736387441697,-500.50396282,9.999e-05,2]
[348204757,1736387441707,-500.0,9.999e-05,2]
[348204758,1736387441717,-500.0,9.999e-05,2]
[348204759,1736387441726,-500.0,9.999e-05,2]
[348204760,1736387441736,-500.0,9.999e-05,2]
[348204761,1736387441746,-500.0,9.999e-05,2]
[348204762,1736387441755,-500.0,9.999e-05,2]
[348204763,1736387441765,-500.0,9.999e-05,2]
[348204764,1736387441775,-500.0,9.999e-05,2]
[348204765,1736387441787,-500.0,9.999e-05,2]
[348204766,1736387441796,-500.0,9.999e-05,2]
[348204767,1736387441805,-500.0,9.999e-05,2]
[348204768,1736387441814,-236.91891143,9.999e-05,2]
[348204769,1736387441825,-1390.66,9.999e-05,2]
[348204770,1736387441834,-500.0,9.999e-05,2]
[348204771,1736387441843,-787.06,9.999e-05,2]
[348204772,1736387441853,-500.0,9.999e-05,2]
[348204773,1736387441863,-500.0,9.999e-05,2]
[348204774,1736387441872,-500.0,9.999e-05,2]
[348204775,1736387441881,-500.0,9.999e-05,2]
[348204776,1736387441890,-500.0,9.999e-05,2]
[348204777,1736387441898,-500.0,9.999e-05,2]
[348204778,1736387441908,-574.42,9.999e-05,2]
[348204779,1736387441918,-500.0,9.999e-05,2]
[348204780,1736387441927,-1360.39,9.999e-05,2]
[348204781,1736387441935,-500.0,9.999e-05,2]
[348204782,1736387441944,-500.0,9.999e-05,2]
[348204783,1736387441953,-500.0,9.999e-05,2]
[348204784,1736387441962,-500.0,9.999e-05,2]
[348204785,1736387441971,-2420.83,9.999e-05,2]
[348204786,1736387441979,-508.05,9.999e-05,2]
[348204787,1736387441989,-500.0,9.999e-05,2]
[348204788,1736387441999,-500.0,9.999e-05,2]
[348204789,1736387442008,-500.0,9.999e-05,2]
[348204790,1736387442017,-500.0,9.999e-05,2]
[348204791,1736387442027,-500.0,9.999e-05,2]
[348204792,1736387442036,-1521.76,9.999e-05,2]
[348204793,1736387442046,-500.0,9.999e-05,2]
[348204794,1736387442056,-500.0,9.999e-05,2]
[348204795,1736387442065,-500.0,9.999e-05,2]
[348204796,1736387442074,-511.03879196,9.999e-05,2]
[348204797,1736387442085,-500.0,9.999e-05,2]
[348204798,1736387442094,-500.0,9.999e-05,2]
[348204799,1736387442103,-500.0,9.999e-05,2]
[348204800,1736387442113,-1857.32,9.999e-05,2]
[348204801,1736387442122,-500.0,9.999e-05,2]
[348204802,1736387442132,-920.0,9.999e-05,2]
[348204803,1736387442142,-500.0,9.999e-05,2]
[348204804,1736387442151,-500.0,9.999e-05,2]
[348204805,1736387442162,-500.0,9.999e-05,2]
[348204806,1736387442171,-500.0,9.999e-05,2]
[348204807,1736387442181,-500.0,9.999e-05,2]
[348204808,1736387442190,-500.0,9.999e-05,2]
[348204809,1736387442198,-500.0,9.999e-05,2]
[348204810,1736387442207,-500.0,9.999e-05,2]
[348204811,1736387442216,-508.89508525,9.999e-05,2]
[348204812,1736387442225,-508.30705551,9.999e-05,2]
[348204813,1736387442234,-500.0,9.999e-05,2]
[348204814,1736387442243,-1194.66,9.999e-05,2]
[348204815,1736387442251,-507.41721159,9.999e-05,2]
[348204816,1736387442260,-500.0,9.999e-05,2]
[348204817,1736387442269,-500.0,9.999e-05,2]
[348204818,1736387442278,-580.85773184,9.999e-05,2]
[348204819,1736387442287,-500.0,9.999e-05,2]
[348204820,1736387442295,-500.0,9.999e-05,2]
[348204821,1736387442304,-500.0,9.999e-05,2]
[348204822,1736387442313,-1067.84,9.999e-05,2]
[348204823,1736387442322,-500.0,9.999e-05,2]
[348204824,1736387442332,-500.0,9.999e-05,2]
[348204825,1736387442341,-500.0,9.999e-05,2]
[348204826,1736387442350,-500.0,9.999e-05,2]
[348204827,1736387442359,-500.0,9.999e-05,2]
[348204828,1736387442368,-237.70089888,9.999e-05,2]
[348204829,1736387442377,-500.0,9.999e-05,2]
[348204830,1736387442385,-500.0,9.999e-05,2]
[348204831,1736387442394,-508.58218176,9.999e-05,2]
[348204832,1736387442403,-3178.23,9.999e-05,2]
[348204833,1736387442412,-504.69819169,9.999e-05,2]
[348204834,1736387442420,-514.02602632,9.999e-05,2]
[348204835,1736387442428,-500.0,9.999e-05,2]
[348204836,1736387442437,-555.34657486,9.999e-05,2]
[348204837,1736387442446,-500.0,9.999e-05,2]
[348204838,1736387442455,-500.0,9.999e-05,2]
[348204839,1736387442464,-500.0,9.999e-05,2]
[348204840,1736387442473,-512.59256089,9.999e-05,2]
[348204841,1736387442483,-500.0,9.999e-05,2]
[348204842,1736387442491,-500.0,9.999e-05,2]
[348204843,1736387442500,-500.0,9.999e-05,2]
[348204844,1736387442510,-500.0,9.999e-05,2]
[348204845,1736387442519,-500.0,9.999e-05,2]
[348204846,1736387442530,-631.88090019,9.999e-05,2]
[348204847,1736387442539,-1091.0,0.0001,2]
[348204848,1736387442548,-85307.96283045,0.0001,2]
[348204851,1736387442802,-38950.20403991,0.0001,2]
[348204852,1736387442911,-642.25840276,9.997e-05,2]
[348204853,1736387442921,-504.48181793,9.998e-05,2]
[348204854,1736387442931,-17268.61368587,0.0001,2]
[348204855,1736387442943,-2776.70500011,0.0001,2]
[348204856,1736387442954,-11437.42527127,0.0001,2]
[348204857,1736387443031,-32043.53841932,0.0001,2]
[348204858,1736387443042,-15341.7916547,0.0001,2]
[348204861,1736387443529,-500.0,9.799e-05,2]
[348204862,1736387443538,-9686.0,0.0001,2]
[348204863,1736387443556,-901.45554085,0.0001,2]
[348204864,1736387443568,-287.19303276,0.0001,2]
[348204865,1736387445626,-501.08333948,9.997e-05,2]
[348204869,1736387446045,-793.08965446,9.997e-05,2]
[348204870,1736387446083,-1564.31700606,9.997e-05,2]
[348204871,1736387446092,-500.0,9.997e-05,2]
[348204872,1736387446101,-261.84481384,9.997e-05,2]
[348204873,1736387446110,-506.1781434,9.998e-05,2]
[348204874,1736387446119,-500.0,9.999e-05,2]
[348204875,1736387446128,-25808.49312516,0.0001,2]
[348204876,1736387446142,-234957.98319329,0.0001,2]
[348204877,1736387446153,-4713.19998,0.0001,2]
[348204878,1736387446166,-29998.68844285,0.0001,2]
[348204880,1736387591475,859.931605,0.0002001,120]
[348204882,1736388179167,784.16,8.219e-05,2]
[348204923,1736388632242,-201.0,8.701e-05,2]
[348204924,1736388632252,-250.0,8.983e-05,2]
[348204925,1736388632262,-1000.0,9.02e-05,2]
[348204926,1736388632272,-514.03,9.022e-05,2]
[348204927,1736388632282,-250.0,9.029e-05,2]
[348204928,1736388632291,-250.0,9.111e-05,2]
[348204929,1736388632300,-524.16,9.114e-05,2]
[348204930,1736388632309,-1010.81,9.229e-05,2]
[348204931,1736388632321,-1832.1416959,9.229e-05,2]
[348204932,1736388632332,-1859.46357618,9.229e-05,2]
[348204933,1736388632343,-2023.74389123,9.229e-05,2]
[348204934,1736388632354,-1555.48465078,9.229e-05,2]
[348204935,1736388632627,-6682.92618591,9.229e-05,2]
[348204936,1736388632636,-696.138,9.5e-05,2]
[348204938,1736388632645,-152.29,9.611e-05,2]
[348204940,1736388632654,-150.24,9.652e-05,2]
[348204942,1736388632663,-460.11,9.8e-05,2]
[348204944,1736388632673,-2396.902,9.802e-05,2]
[348204946,1736388632682,-175.597,9.802e-05,2]
[348204948,1736388632691,-18895.0975,9.897e-05,2]
[348204950,1736388632700,-4848.8711,9.897e-05,2]
[348204951,1736388632709,-523.8212,9.899e-05,2]
[348204953,1736388632718,-7085.6855,9.899e-05,2]
[348204955,1736388632727,-20659.0003,9.9e-05,2]
[348204957,1736388632737,-5000.0,9.9e-05,2]
[348204959,1736388632747,-215.5316,9.9e-05,2]
[348204960,1736388632757,-1671.06,9.997e-05,2]
[348204961,1736388632766,-798.35,9.997e-05,2]